bitfinex/quotes_SOLUSD_20240717
["timestamp","ask_amount","ask_price","bid_price","bid_amount"]
[1721183647292,20.0,161.89,161.88,0.8285624]
[1721183647496,35.02,161.89,161.88,0.8285624]
[1721183648884,20.0,161.89,161.88,0.8285624]
[1721183649085,15.02,161.89,161.88,0.8285624]
[1721183649283,15.4376,161.95,161.88,0.8285624]
[1721183649494,15.02,161.9,161.88,0.8285624]
[1721183651006,15.02,161.89,161.88,0.8285624]
[1721183651394,15.02,161.9,161.88,0.8285624]
[1721183653024,21.197,161.89,161.88,0.8285624]
[1721183653387,15.02,161.89,161.88,0.8285624]
[1721183653902,41.197,161.89,161.88,0.8285624]
[1721183658108,35.02,161.89,161.88,0.8285624]
[1721183659196,20.0,161.89,161.88,0.8285624]
[1721183659408,15.02,161.89,161.88,0.8285624]
[1721183660414,21.197,161.89,161.88,0.8285624]
[1721183664396,41.197,161.89,161.88,0.8285624]
[1721183677346,41.367,161.89,161.88,0.8285624]
[1721183677633,41.537,161.89,161.88,0.8285624]
[1721183678446,60.097,161.89,161.88,0.8285624]
[1721183678745,71.23507112,161.89,161.88,0.8285624]
[1721183679032,71.23507112,161.89,161.77,15.2323]
[1721183679033,6.1787,161.85,161.77,15.2323]
[1721183679216,15.02,161.81,161.77,15.2323]
[1721183682744,0.17,161.88,161.77,15.2323]
[1721183682745,15.02,161.8,161.77,15.2323]
[1721183683244,15.02,161.79,161.77,15.2323]
[1721183684822,15.02,161.78,161.73,22.6003]
[1721183685544,15.02,161.78,161.74,30.0]
[1721183686523,15.02,161.78,161.73,37.6203]
[1721183686940,40.9077,161.86,161.74,1.23639189]
[1721183687128,40.9077,161.86,161.73,22.6003]
[1721183687129,15.02,161.81,161.76,15.02]
[1721183687450,15.02,161.8,161.75,45.02]
[1721183688153,15.02,161.81,161.76,15.02]
[1721183688321,15.02,161.8,161.75,45.02]
[1721183689638,15.02,161.8,161.75,30.0]
[1721183690422,15.02,161.79,161.74,15.02]
[1721183692132,15.02,161.8,161.74,15.02]
[1721183693551,15.02,161.8,161.75,15.02]
[1721183693848,15.02,161.82,161.77,15.02]
[1721183694454,6.178,161.87,161.79,15.02]
[1721183694621,45.1641531,161.9,161.79,15.02]
[1721183694817,15.02,161.85,161.8,1.23571673]
[1721183695022,15.02,161.84,161.79,15.02]
[1721183695319,15.02,161.83,161.78,15.02]
[1721183695528,15.02,161.82,161.77,15.02]
[1721183695732,15.02,161.82,161.78,30.0]
[1721183695946,15.02,161.82,161.76,15.2159]
[1721183695947,15.02,161.81,161.76,30.2359]
[1721183697546,15.02,161.82,161.77,15.02]
[1721183699852,15.02,161.82,161.77,16.25621146]
[1721183701360,15.02,161.82,161.77,15.02]
[1721183701665,6.1786,161.85,161.77,15.02]
[1721183701849,35.02,161.84,161.79,15.02]
[1721183702853,15.02,161.84,161.79,15.02]
[1721183703051,15.02,161.85,161.8,15.02]
[1721183703254,15.02,161.86,161.81,15.02]
[1721183703863,6.1777,161.88,161.81,15.02]
[1721183704071,15.02,161.86,161.81,15.02]
[1721183704436,15.02,161.86,161.82,1.23582258]
[1721183705440,6.1773,161.89,161.83,16.2557622]
[1721183705664,20.0,161.88,161.83,16.2557622]
[1721183705969,35.02,161.88,161.83,16.2557622]
[1721183706537,35.02,161.88,161.84,1.23565408]
[1721183706950,41.1975,161.88,161.83,15.02]
[1721183707169,15.02,161.87,161.82,15.02]
[1721183707332,21.1978,161.87,161.82,15.02]
[1721183707533,20.0,161.88,161.81,15.9715]
[1721183707534,6.1782,161.86,161.81,15.9715]
[1721183707741,15.02,161.85,161.81,15.9715]
[1721183708850,15.02,161.84,161.81,15.9715]
[1721183709238,15.02,161.84,161.77,15.0723]
[1721183709439,15.02,161.83,161.78,15.02]
[1721183710470,15.02,161.81,161.77,15.0723]
[1721183710679,15.02,161.81,161.73,10.0]
[1721183710680,15.02,161.78,161.73,15.9876]
[1721183710960,15.02,161.78,161.73,31.0076]
[1721183711272,15.02,161.79,161.74,15.02]
[1721183711971,15.02,161.79,161.73,31.0076]
[1721183712344,15.02,161.79,161.74,15.02]
[1721183712542,15.02,161.8,161.74,15.02]
[1721183713842,6.1798,161.82,161.75,15.02]
[1721183714041,15.02,161.8,161.75,15.02]
[1721183714256,15.02,161.8,161.76,1.23621007]
[1721183714456,15.02,161.8,161.75,15.02]
[1721183714968,15.02,161.8,161.74,15.02]
[1721183715170,15.02,161.8,161.75,15.02]
[1721183715341,15.02,161.8,161.74,15.02]
[1721183716958,15.02,161.79,161.73,15.9876]
[1721183717165,15.02,161.79,161.74,15.02]
[1721183717980,15.02,161.78,161.73,31.0076]
[1721183719181,30.4039,161.82,161.73,15.9876]
[1721183719381,15.02,161.76,161.72,0.8285624]
[1721183719669,15.02,161.75,161.72,0.8285624]
[1721183719846,15.02,161.76,161.72,0.8285624]
[1721183720042,15.02,161.77,161.72,0.8285624]
[1721183720268,6.1805,161.8,161.73,1.23658694]
[1721183720471,15.02,161.78,161.74,1.23639149]
[1721183720853,15.02,161.78,161.73,15.02]
[1721183721450,15.02,161.76,161.72,0.8285624]
[1721183722169,15.02,161.75,161.72,0.8285624]
[1721183722370,15.02,161.76,161.72,0.8285624]
[1721183723657,15.02,161.76,161.72,2.06514005]
[1721183723867,15.02,161.76,161.72,0.8285624]
[1721183724776,15.02,161.75,161.72,0.8285624]
[1721183724961,15.02,161.76,161.72,0.8285624]
[1721183727179,15.02,161.77,161.72,0.8285624]
[1721183727772,6.1809,161.79,161.72,2.06511179]
[1721183727980,15.02,161.77,161.72,17.08511179]
[1721183728984,15.02,161.77,161.72,15.8485624]
[1721183729153,15.02,161.77,161.72,0.8285624]
[1721183729485,15.02,161.75,161.72,0.8285624]
[1721183730149,15.02,161.76,161.72,0.8285624]
[1721183730775,15.02,161.74,161.72,0.8285624]
[1721183734384,15.02,161.73,161.72,0.8285624]
[1721183741859,14.52,161.73,161.72,0.8285624]
[1721183742182,14.52,161.73,161.72,0.3285624]
[1721183746284,28.2292,161.77,161.72,0.3285624]
[1721183746498,20.0,161.76,161.72,0.3285624]
[1721183746869,15.02,161.75,161.72,0.3285624]
[1721183747680,15.02,161.74,161.72,0.3285624]
[1721183748056,15.02,161.75,161.72,0.3285624]
[1721183748580,35.02,161.76,161.72,0.3285624]
[1721183749284,6.4071,161.81,161.74,15.02]
[1721183749489,15.02,161.79,161.74,15.02]
[1721183749787,15.02,161.78,161.73,15.02]
[1721183750160,12.5872,161.81,161.74,16.25582299]
[1721183750385,15.02,161.79,161.74,16.25582299]
[1721183750579,15.02,161.79,161.74,15.02]
[1721183750784,15.02,161.78,161.73,15.02]
[1721183751172,15.02,161.78,161.72,15.3485624]
[1721183751472,15.02,161.75,161.72,0.3285624]
[1721183751671,15.02,161.74,161.72,0.3285624]
[1721183752174,15.02,161.73,161.72,0.3285624]
[1721183759896,35.02,161.73,161.72,0.3285624]
[1721183760676,15.02,161.74,161.72,0.3285624]
[1721183761180,6.1816,161.77,161.72,0.3285624]
[1721183761181,15.02,161.73,161.72,0.3285624]
[1721183761897,6.26,161.78,161.72,0.3285624]
[1721183762078,15.02,161.76,161.72,0.3285624]
[1721183762274,6.26,161.78,161.72,0.3285624]
[1721183762488,15.02,161.75,161.72,0.3285624]
[1721183763284,15.02,161.76,161.72,0.3285624]
[1721183764070,12.4412,161.78,161.72,0.3285624]
[1721183764071,15.02,161.75,161.72,0.3285624]
[1721183764488,12.4413,161.78,161.72,0.3285624]
[1721183764770,60.08,161.82,161.72,0.3285624]
[1721183764972,15.02,161.78,161.73,15.02]
[1721183765187,6.4541,161.82,161.74,15.42385735]
[1721183765390,15.02,161.79,161.74,15.02]
[1721183765973,15.02,161.79,161.74,16.25637787]
[1721183766698,15.02,161.79,161.74,15.02]
[1721183767404,15.02,161.79,161.74,14.52]
[1721183767697,15.02,161.79,161.73,15.02]
[1721183768482,15.02,161.79,161.74,1.23638006]
[1721183768682,15.02,161.79,161.73,15.02]
[1721183768885,15.02,161.78,161.73,15.02]
[1721183769090,6.1806,161.8,161.72,31.0200624]
[1721183769293,15.02,161.77,161.72,31.0200624]
[1721183769518,15.02,161.77,161.72,16.0000624]
[1721183770379,6.1812,161.78,161.72,16.0000624]
[1721183770703,15.02,161.75,161.72,16.0000624]
[1721183771189,15.02,161.74,161.72,0.3285624]
[1721183772180,15.02,161.75,161.72,0.3285624]
[1721183772375,6.1809,161.79,161.72,0.3285624]
[1721183772602,20.0,161.78,161.72,0.3285624]
[1721183772900,15.02,161.77,161.72,0.3285624]
[1721183773811,15.02,161.76,161.72,0.3285624]
[1721183773987,15.02,161.75,161.72,0.3285624]
[1721183777386,6.1808,161.8,161.72,15.3485624]
[1721183777588,15.02,161.78,161.73,15.02]
[1721183778308,15.02,161.79,161.74,15.02]
[1721183778680,15.02,161.78,161.73,15.02]
[1721183779410,15.02,161.79,161.74,15.02]
[1721183779903,12.6341,161.82,161.72,0.3285624]
[1721183779904,15.02,161.75,161.72,0.3285624]
[1721183780286,15.02,161.74,161.72,0.3285624]
[1721183780486,15.02,161.73,161.72,0.3285624]
[1721183781099,15.02,161.74,161.72,0.3285624]
[1721183781607,6.1806,161.8,161.72,0.3285624]
[1721183781794,15.02,161.76,161.72,0.3285624]
[1721183783087,15.02,161.75,161.72,0.3285624]
[1721183785117,15.02,161.76,161.72,0.3285624]
[1721183786610,15.02,161.73,161.72,0.3285624]
[1721183786811,41.2031,161.73,161.72,0.3285624]
[1721183788816,41.2031,161.73,161.72,0.3285624]
[1721183791697,35.02,161.73,161.72,0.3285624]
[1721183792410,21.8789,161.78,161.72,0.3285624]
[1721183792609,15.02,161.73,161.72,0.3285624]
[1721183795720,6.1824,161.75,161.72,0.3285624]
[1721183795904,15.02,161.73,161.72,0.3285624]
[1721183797921,6.1817,161.77,161.72,0.3285624]
[1721183798119,15.02,161.74,161.72,0.3285624]
[1721183799826,15.02,161.73,161.72,0.3285624]
[1721183801307,15.02,161.74,161.72,0.3285624]
[1721183802508,40.75533069,161.81,161.72,0.3285624]
[1721183802509,15.02,161.75,161.72,0.3285624]
[1721183802713,22.19533069,161.81,161.72,16.58502604]
[1721183802919,15.02,161.77,161.72,16.58502604]
[1721183805619,15.02,161.78,161.73,15.02]
[1721183807139,15.02,161.78,161.72,15.3485624]
[1721183807423,15.02,161.76,161.72,0.3285624]
[1721183807807,85.1611,161.82,161.72,0.3285624]
[1721183807808,15.02,161.75,161.72,0.3285624]
[1721183809731,15.02,161.74,161.72,0.3285624]
[1721183809927,15.02,161.73,161.72,0.3285624]
[1721183815121,12.4779,161.77,161.72,0.3285624]
[1721183815435,15.02,161.75,161.72,0.3285624]
[1721183815635,15.02,161.74,161.72,0.3285624]
[1721183820836,15.02,161.75,161.72,0.3285624]
[1721183821215,6.3843,161.81,161.72,16.2254624]
[1721183821431,15.02,161.77,161.72,31.2454624]
[1721183821934,6.1809,161.79,161.72,16.2254624]
[1721183822136,15.02,161.77,161.72,31.2454624]
[1721183822317,15.02,161.77,161.72,16.2254624]
[1721183823847,6.1809,161.79,161.72,16.2254624]
[1721183824017,20.0,161.78,161.72,31.2454624]
[1721183824218,15.02,161.77,161.72,31.2454624]
[1721183825319,6.1809,161.79,161.72,16.2254624]
[1721183825519,15.02,161.76,161.72,16.2254624]
[1721183826438,15.02,161.77,161.72,31.2454624]
[1721183828343,15.02,161.78,161.72,31.2454624]
[1721183831448,15.02,161.77,161.72,31.2454624]
[1721183831655,15.02,161.78,161.73,15.02]
[1721183832151,15.02,161.77,161.72,31.2454624]
[1721183832448,15.02,161.78,161.73,15.02]
[1721183832945,6.4951,161.85,161.74,1.16538068]
[1721183833144,15.02,161.82,161.77,15.02]
[1721183833350,12.6737,161.85,161.77,15.02]
[1721183833538,15.02,161.82,161.77,15.02]
[1721183835652,15.02,161.81,161.76,15.02]
[1721183836830,15.02,161.8,161.75,15.02]
[1721183838489,15.02,161.79,161.74,15.02]
[1721183838636,15.02,161.79,161.72,22.8908624]
[1721183838838,15.02,161.79,161.74,15.02]
[1721183839637,15.02,161.78,161.73,15.02]
[1721183839863,6.4951,161.85,161.74,15.02]
[1721183840178,6.1794,161.83,161.74,15.02]
[1721183840356,35.02,161.82,161.77,15.02]
[1721183840558,20.0,161.82,161.77,15.02]
[1721183840763,35.02,161.82,161.77,15.02]
[1721183840974,15.02,161.82,161.77,15.02]
[1721183841278,15.02,161.82,161.78,1.23618054]
[1721183841488,15.02,161.82,161.77,15.02]
[1721183842250,20.0,161.84,161.78,1.23605873]
[1721183842458,35.02,161.84,161.79,15.02]
[1721183842884,20.0,161.84,161.79,15.02]
[1721183843071,15.02,161.84,161.79,15.02]
[1721183845366,15.02,161.82,161.78,15.6477]
[1721183847063,15.02,161.8,161.78,15.6477]
[1721183847462,15.02,161.8,161.75,15.02]
[1721183848289,15.02,161.81,161.75,15.02]
[1721183848790,15.02,161.81,161.74,16.3362]
[1721183849082,15.02,161.81,161.75,15.02]
[1721183849579,15.02,161.8,161.75,15.02]
[1721183851065,15.02,161.79,161.74,31.3562]
[1721183852078,6.1793,161.83,161.74,31.3562]
[1721183852280,15.02,161.79,161.74,31.3562]
[1721183852483,15.02,161.78,161.74,16.3362]
[1721183853172,86.2597,161.82,161.74,16.3362]
[1721183855375,80.08,161.82,161.74,16.3362]
[1721183855875,6.1807,161.8,161.72,0.3285624]
[1721183856076,20.0,161.79,161.72,0.3285624]
[1721183856467,15.02,161.73,161.72,0.3285624]
[1721183858181,6.3515,161.78,161.72,0.3285624]
[1721183858385,15.02,161.75,161.72,0.3285624]
[1721183861074,15.02,161.74,161.72,0.3285624]
[1721183861579,15.02,161.73,161.72,0.3285624]
[1721183863194,21.2031,161.73,161.72,0.3285624]
[1721183863499,41.2031,161.73,161.72,0.3285624]
[1721183864073,35.02,161.73,161.72,0.3285624]
[1721183866168,41.2031,161.73,161.72,0.3285624]
[1721183869083,35.02,161.73,161.72,0.3285624]
[1721183870201,41.2031,161.73,161.72,0.3285624]
[1721183870789,26.1831,161.73,161.72,0.3285624]
[1721183870997,35.02,161.73,161.72,0.3285624]
[1721183871898,41.2031,161.73,161.72,0.3285624]
[1721183873397,26.1831,161.73,161.72,0.3285624]
[1721183873581,41.2031,161.73,161.72,0.3285624]
[1721183878908,26.1831,161.73,161.72,0.3285624]
[1721183879107,41.2031,161.73,161.72,0.3285624]
[1721183884707,35.02,161.73,161.72,0.3285624]
[1721183884889,41.2031,161.73,161.72,0.3285624]
[1721183886809,15.02,161.73,161.72,0.3285624]
[1721183888113,21.2031,161.73,161.72,0.3285624]
[1721183889705,41.5431,161.73,161.72,0.3285624]
[1721183897515,56.5631,161.73,161.72,0.3285624]
[1721183898499,36.5631,161.73,161.72,0.3285624]
[1721183898709,56.5631,161.73,161.72,0.3285624]
[1721183899326,35.02,161.73,161.72,0.3285624]
[1721183900003,20.0,161.73,161.72,0.3285624]
[1721183900324,35.02,161.73,161.72,0.3285624]
[1721183902533,41.2031,161.73,161.72,0.3285624]
[1721183904431,35.02,161.73,161.72,0.3285624]
[1721183906737,41.2031,161.73,161.72,0.3285624]
[1721183909634,35.02,161.73,161.72,0.3285624]
[1721183910629,41.2031,161.73,161.72,0.3285624]
[1721183912433,41.5431,161.73,161.72,0.3285624]
[1721183914410,26.1831,161.73,161.72,0.3285624]
[1721183914610,41.2031,161.73,161.72,0.3285624]
[1721183915522,35.02,161.73,161.72,0.3285624]
[1721183915710,41.2031,161.73,161.72,0.3285624]
[1721183920811,41.5431,161.73,161.72,0.3285624]
[1721183929155,56.5631,161.73,161.72,0.3285624]
[1721183931347,67.71014225,161.73,161.72,0.3285624]
[1721183932246,56.5631,161.73,161.72,0.3285624]
[1721183933641,90.5809,161.73,161.72,0.3285624]
[1721183933843,6.1851,161.68,161.61,6.46622893]
[1721183934027,6.3775,161.7,161.61,6.46622893]
[1721183934028,15.02,161.63,161.61,6.46622893]
[1721183934237,15.02,161.63,161.58,30.6187]
[1721183934539,15.02,161.64,161.59,15.02]
[1721183936148,15.02,161.64,161.6,1.23744072]
[1721183937457,15.02,161.64,161.59,15.02]
[1721183937831,15.02,161.64,161.58,15.5987]
[1721183938026,15.02,161.64,161.59,15.02]
[1721183938222,15.02,161.64,161.6,1.23744195]
[1721183938427,15.02,161.65,161.61,1.2373756]
[1721183939743,35.4578,161.73,161.62,16.1733]
[1721183939928,15.02,161.67,161.62,16.1733]
[1721183940353,15.02,161.66,161.62,16.1733]
[1721183941249,15.02,161.65,161.62,16.1733]
[1721183945538,15.02,161.64,161.62,16.1733]
[1721183946647,15.02,161.64,161.58,30.0273]
[1721183947345,95.5378,161.73,161.58,30.0273]
[1721183947346,15.02,161.62,161.58,15.0073]
[1721183949640,15.02,161.63,161.58,30.0273]
[1721183949952,6.1859,161.66,161.58,30.0273]
[1721183950136,15.02,161.64,161.59,1.23754549]
[1721183950563,15.02,161.64,161.59,16.25754549]
[1721183951649,15.02,161.64,161.59,1.23754549]
[1721183953070,6.1858,161.66,161.59,1.23754549]
[1721183953361,15.02,161.64,161.58,30.0273]
[1721183953541,15.02,161.64,161.59,1.23754358]
[1721183954551,6.1858,161.66,161.59,1.23754358]
[1721183954758,15.02,161.65,161.6,15.02]
[1721183955066,15.02,161.65,161.61,1.23740363]
[1721183955668,6.1904,161.69,161.61,16.25740363]
[1721183955669,12.3751,161.69,161.61,16.25740363]
[1721183955845,20.0,161.68,161.61,16.25740363]
[1721183956162,20.0,161.68,161.63,31.0523]
[1721183956363,15.02,161.67,161.63,16.0323]
[1721183957371,15.02,161.68,161.64,1.23715715]
[1721183957535,6.0299,161.73,161.64,1.23715715]
[1721183957737,15.02,161.68,161.64,1.23715715]
[1721183957936,15.02,161.68,161.63,31.0523]
[1721183958569,6.1842,161.7,161.63,31.0523]
[1721183958864,15.02,161.68,161.64,1.23715756]
[1721183959463,15.02,161.67,161.63,16.0323]
[1721183959668,15.02,161.68,161.63,16.0323]
[1721183960469,15.02,161.67,161.63,16.0323]
[1721183963478,15.02,161.67,161.63,17.26953101]
[1721183964054,15.02,161.67,161.63,16.0323]
[1721183964472,15.02,161.67,161.63,17.26950511]
[1721183965257,66.1099,161.73,161.65,15.02]
[1721183965258,6.0299,161.73,161.65,15.02]
[1721183965458,6.1829,161.74,161.66,16.25694214]
[1721183965778,15.02,161.71,161.67,1.23695168]
[1721183966959,6.1831,161.73,161.67,1.23695168]
[1721183967273,15.02,161.71,161.67,1.23695168]
[1721183968170,6.0777,161.77,161.67,1.23695168]
[1721183968374,15.02,161.72,161.67,16.25695168]
[1721183968557,15.02,161.71,161.66,15.02]
[1721183969277,15.02,161.71,161.67,1.23695261]
[1721183970379,15.02,161.72,161.67,1.23695261]
[1721183970671,15.02,161.72,161.66,15.02]
[1721183970876,15.02,161.71,161.63,16.0323]
[1721183971104,15.02,161.71,161.66,15.02]
[1721183971461,15.02,161.7,161.65,15.02]
[1721183972378,15.02,161.67,161.63,16.0323]
[1721183972566,6.1842,161.71,161.63,16.0323]
[1721183972765,15.02,161.68,161.63,31.0523]
[1721183972971,6.1842,161.71,161.63,31.0523]
[1721183973172,15.02,161.68,161.63,31.0523]
[1721183973783,15.02,161.69,161.64,1.23719339]
[1721183974270,15.02,161.69,161.63,31.0523]
[1721183974859,0.34,161.72,161.64,15.02]
[1721183975060,15.02,161.69,161.64,15.02]
[1721183975279,15.02,161.69,161.65,1.23706326]
[1721183975702,15.02,161.7,161.65,16.25706326]
[1721183976258,15.02,161.7,161.65,15.02]
[1721183976461,15.02,161.69,161.64,15.02]
[1721183976679,15.02,161.68,161.63,31.0523]
[1721183977165,15.02,161.68,161.63,16.0323]
[1721183977467,15.02,161.65,161.6,15.02]
[1721183977682,6.1858,161.66,161.59,15.7412]
[1721183977883,6.5861,161.71,161.6,16.25741185]
[1721183977884,6.1854,161.67,161.6,16.25741185]
[1721183978091,15.02,161.65,161.61,1.23738914]
[1721183978465,15.02,161.66,161.61,1.23738914]
[1721183978767,15.02,161.66,161.61,16.25738914]
[1721183979171,15.02,161.66,161.61,15.02]
[1721183979678,15.02,161.67,161.62,15.02]
[1721183981082,15.02,161.67,161.61,1.23740756]
[1721183981273,15.02,161.67,161.61,15.02]
[1721183981474,15.02,161.67,161.61,16.25736905]
[1721183982383,6.1846,161.7,161.62,1.23735585]
[1721183982595,15.02,161.67,161.62,16.25735585]
[1721183983086,15.02,161.68,161.63,15.02]
[1721183983285,15.02,161.69,161.64,1.23712815]
[1721183983489,15.02,161.69,161.64,16.25712815]
[1721183983671,15.02,161.7,161.65,1.23710849]
[1721183984261,6.14,161.75,161.65,16.25710849]
[1721183984483,6.14,161.75,161.66,15.02]
[1721183984484,15.02,161.71,161.66,15.02]
[1721183985088,15.02,161.71,161.65,15.02]
[1721183985790,15.02,161.7,161.65,15.02]
[1721183985992,15.02,161.7,161.65,16.25696511]
[1721183986677,15.02,161.7,161.65,15.02]
[1721183987078,15.02,161.7,161.64,16.1265]
[1721183987079,6.1844,161.7,161.64,16.1265]
[1721183987281,15.02,161.69,161.64,16.1265]
[1721183987472,15.02,161.68,161.64,16.1265]
[1721183990893,15.02,161.67,161.64,16.1265]
[1721183996092,15.02,161.67,161.62,15.02]
[1721183996309,15.02,161.68,161.61,1.23736665]
[1721183996483,15.02,161.68,161.62,15.02]
[1721183996795,6.1816,161.78,161.68,16.2508]
[1721183996999,15.02,161.78,161.73,15.02]
[1721183997298,15.02,161.79,161.74,15.02]
[1721183997687,6.2382,161.8,161.74,15.02]
[1721183997900,15.02,161.79,161.74,15.02]
[1721183999298,6.1797,161.82,161.74,15.02]
[1721183999504,15.02,161.8,161.75,15.02]
[1721184000390,15.02,161.8,161.75,31.1744]
[1721184000590,15.02,161.81,161.76,15.02]
[1721184004400,15.02,161.82,161.77,15.02]
[1721184004785,15.02,161.81,161.76,15.02]
[1721184005509,21.2001,161.81,161.75,31.1744]
[1721184005812,97.1546,161.91,161.76,6.1786]
[1721184005813,6.0164,161.89,161.76,6.1786]
[1721184005986,15.02,161.84,161.79,15.02]
[1721184006185,15.02,161.85,161.8,15.02]
[1721184006409,15.02,161.86,161.81,15.02]
[1721184006585,12.1935,161.89,161.81,15.02]
[1721184006788,15.02,161.87,161.82,16.25584085]
[1721184007019,15.02,161.88,161.83,15.02]
[1721184007509,15.02,161.87,161.82,30.1108]
[1721184009183,15.02,161.87,161.82,15.0908]
[1721184009384,15.02,161.86,161.82,15.0908]
[1721184010309,15.02,161.87,161.82,30.1108]
[1721184010612,15.02,161.86,161.82,15.0908]
[1721184012088,40.0354,161.93,161.82,31.34662458]
[1721184012305,15.02,161.88,161.83,15.02]
[1721184012683,15.02,161.88,161.83,16.25575054]
[1721184012888,15.02,161.89,161.83,16.25575054]
[1721184013089,6.1763,161.91,161.83,16.25575054]
[1721184013284,15.02,161.89,161.83,16.25575054]
[1721184013524,15.02,161.88,161.83,16.25575054]
[1721184014617,15.02,161.87,161.82,15.0908]
[1721184015207,6.1774,161.88,161.82,15.0908]
[1721184015208,15.02,161.86,161.82,15.0908]
[1721184015411,15.02,161.87,161.82,16.32666885]
[1721184015600,15.02,161.87,161.82,15.0908]
[1721184016508,15.02,161.86,161.82,15.0908]
[1721184018609,15.02,161.85,161.82,15.0908]
[1721184019190,15.02,161.86,161.82,15.0908]
[1721184019703,15.02,161.87,161.82,30.1108]
[1721184021924,15.02,161.86,161.82,15.0908]
[1721184022110,6.1778,161.87,161.78,15.7301]
[1721184022311,15.02,161.85,161.79,15.02]
[1721184022502,15.02,161.84,161.78,30.7501]
[1721184022704,15.02,161.81,161.78,15.7301]
[1721184022994,15.02,161.8,161.74,15.6553]
[1721184023199,15.02,161.8,161.75,15.02]
[1721184023527,0.17,161.85,161.74,30.6753]
[1721184023528,15.02,161.79,161.74,30.6753]
[1721184024394,15.02,161.8,161.75,15.02]
[1721184025823,0.17,161.85,161.74,15.6553]
[1721184025824,15.02,161.79,161.74,15.6553]
[1721184026028,15.02,161.79,161.74,30.6753]
[1721184026696,15.02,161.78,161.74,15.6553]
[1721184026900,15.02,161.77,161.72,15.02]
[1721184027099,25.2352,161.81,161.7,15.9325]
[1721184027336,15.02,161.73,161.7,15.9325]
[1721184027628,15.02,161.72,161.7,15.9325]
[1721184030113,15.02,161.74,161.7,15.9325]
[1721184031718,15.02,161.73,161.7,15.9325]
[1721184032932,15.02,161.74,161.7,15.9325]
[1721184033129,15.02,161.73,161.7,15.9325]
[1721184033297,15.02,161.74,161.7,15.9325]
[1721184033509,15.02,161.76,161.7,30.9525]
[1721184033707,15.02,161.75,161.7,30.9525]
[1721184034316,15.02,161.74,161.7,15.9325]
[1721184035623,15.02,161.75,161.7,30.9525]
[1721184035822,6.1809,161.79,161.71,16.25659316]
[1721184036043,15.02,161.76,161.71,16.25659316]
[1721184037258,15.02,161.77,161.72,15.02]
[1721184038229,15.02,161.76,161.71,16.25659316]
[1721184040352,15.02,161.76,161.71,15.02]
[1721184040524,15.02,161.76,161.71,16.25654067]
[1721184043147,6.183,161.74,161.7,15.9325]
[1721184043356,15.02,161.72,161.7,15.9325]
[1721184044548,15.02,161.71,161.66,30.3842]
[1721184045747,15.02,161.72,161.67,16.25685496]
[1721184045940,15.02,161.73,161.68,16.25685407]
[1721184046148,15.02,161.74,161.69,15.02]
[1721184046332,15.02,161.74,161.7,1.23673156]
[1721184050746,20.0,161.8,161.71,1.23673186]
[1721184050938,15.02,161.76,161.71,16.25673186]